[Event "Early-Titled-Tuesday-Blitz-May-28-2024"]
[Site "Chess.com"]
[Date "2024.05.28"]
[Round "2"]
[White "Lion-Al-Messi"]
[Black "Louis-Paulsen-Fan"]
[Result "0-1"]
[WhiteElo "2652"]
[BlackElo "2311"]
[TimeControl "180+1"]
[EndTime "8:19:26 PDT"]
[Termination "Louis-Paulsen-Fan won by checkmate"]

1. e4 {[%clk 0:02:55.5]} 1... Nf6 {[%clk 0:02:59.3]} 2. e5 {[%clk 0:02:55.4]}
2... Nd5 {[%clk 0:02:59.9]} 3. d4 {[%clk 0:02:55.4]} 3... d6 {[%clk 0:03:00]} 4.
Nf3 {[%clk 0:02:55.6]} 4... g6 {[%clk 0:02:59.8]} 5. c4 {[%clk 0:02:54.6]} 5...
Nb6 {[%clk 0:02:59.9]} 6. Nc3 {[%clk 0:02:54.7]} 6... Bg7 {[%clk 0:02:59.3]} 7.
exd6 {[%clk 0:02:54.8]} 7... cxd6 {[%clk 0:03:00.2]} 8. Be2 {[%clk 0:02:54.7]}
8... O-O {[%clk 0:03:00.2]} 9. h3 {[%clk 0:02:54.7]} 9... Nc6 {[%clk 0:02:56.5]}
10. O-O {[%clk 0:02:54.8]} 10... e5 {[%clk 0:02:54.2]} 11. d5 {[%clk 0:02:53.9]}
11... Ne7 {[%clk 0:02:54.5]} 12. a4 {[%clk 0:02:52.4]} 12... Bd7 {[%clk
0:02:45.4]} 13. a5 {[%clk 0:02:52.2]} 13... Nbc8 {[%clk 0:02:45.7]} 14. a6
{[%clk 0:02:51.9]} 14... b6 {[%clk 0:02:35.4]} 15. Nb5 {[%clk 0:02:51.4]} 15...
Bxb5 {[%clk 0:02:26.7]} 16. cxb5 {[%clk 0:02:52.3]} 16... h6 {[%clk 0:02:26.8]}
17. b3 {[%clk 0:02:46.9]} 17... f5 {[%clk 0:02:25.7]} 18. Bb2 {[%clk 0:02:46.3]}
18... g5 {[%clk 0:02:19.1]} 19. Rc1 {[%clk 0:02:45.8]} 19... Ng6 {[%clk
0:02:18.1]} 20. Qc2 {[%clk 0:02:40.8]} 20... Nf4 {[%clk 0:02:16.2]} 21. Rfd1
{[%clk 0:02:40]} 21... g4 {[%clk 0:01:57]} 22. hxg4 {[%clk 0:02:39.9]} 22...
fxg4 {[%clk 0:01:57.9]} 23. Nd2 {[%clk 0:02:40.2]} 23... Qh4 {[%clk 0:01:56.4]}
24. Ne4 {[%clk 0:02:38.6]} 24... Ne7 {[%clk 0:01:42.8]} 25. Bf1 {[%clk
0:02:35.4]} 25... Rac8 {[%clk 0:01:26.7]} 26. Qd2 {[%clk 0:02:33.1]} 26... Nf5
{[%clk 0:01:24.3]} 27. Rc6 {[%clk 0:02:28.4]} 27... g3 {[%clk 0:01:14.6]} 28.
fxg3 {[%clk 0:02:24.6]} 28... Nxg3 {[%clk 0:01:13.6]} 29. Nxg3 {[%clk
0:02:23.6]} 29... Qxg3 {[%clk 0:01:11]} 30. Kh1 {[%clk 0:02:06]} 30... Qh4+
{[%clk 0:00:59.9]} 31. Kg1 {[%clk 0:02:05.5]} 31... Qg3 {[%clk 0:00:58]} 32.
Rdc1 {[%clk 0:01:32.5]} 32... Rxc6 {[%clk 0:00:45]} 33. dxc6 {[%clk 0:01:29]}
33... Nh3+ {[%clk 0:00:41.6]} 34. Kh1 {[%clk 0:01:28.9]} 34... Nf2+ {[%clk
0:00:33.7]} 35. Qxf2 {[%clk 0:01:17.9]} 35... Qxf2 {[%clk 0:00:32.2]} 36. Bc4+
{[%clk 0:00:53.6]} 36... Kh8 {[%clk 0:00:31.9]} 37. Rf1 {[%clk 0:00:50.7]} 37...
Qh4+ {[%clk 0:00:26.2]} 38. Kg1 {[%clk 0:00:50.2]} 38... Rxf1+ {[%clk
0:00:22.8]} 39. Kxf1 {[%clk 0:00:47.5]} 39... Qd8 {[%clk 0:00:23.1]} 40. Bd5
{[%clk 0:00:44.8]} 40... e4 {[%clk 0:00:22.3]} 41. Bxg7+ {[%clk 0:00:28.3]}
41... Kxg7 {[%clk 0:00:23.2]} 42. Ke2 {[%clk 0:00:28.1]} 42... Kf6 {[%clk
0:00:23]} 43. Bxe4 {[%clk 0:00:21.3]} 43... d5 {[%clk 0:00:22.1]} 44. Bf3 {[%clk
0:00:20.4]} 44... Ke5 {[%clk 0:00:22.2]} 45. Kd3 {[%clk 0:00:20.6]} 45... Kd6
{[%clk 0:00:22.1]} 46. b4 {[%clk 0:00:19.3]} 46... Qf6 {[%clk 0:00:20.6]} 47.
Be2 {[%clk 0:00:18.8]} 47... Qf5+ {[%clk 0:00:19.8]} 48. Ke3 {[%clk 0:00:18.4]}
48... Qe4+ {[%clk 0:00:19.6]} 49. Kf2 {[%clk 0:00:18.6]} 49... Qxb4 {[%clk
0:00:20.2]} 50. g4 {[%clk 0:00:18.7]} 50... Qc3 {[%clk 0:00:20.2]} 51. Bf1
{[%clk 0:00:18]} 51... d4 {[%clk 0:00:20.4]} 52. g5 {[%clk 0:00:13.7]} 52...
hxg5 {[%clk 0:00:19.9]} 53. Bg2 {[%clk 0:00:13.2]} 53... d3 {[%clk 0:00:19.9]}
54. Bf3 {[%clk 0:00:13.5]} 54... d2 {[%clk 0:00:20.2]} 55. Bg4 {[%clk
0:00:13.8]} 55... Qd4+ {[%clk 0:00:20.3]} 56. Kg2 {[%clk 0:00:05.8]} 56... Qxg4+
{[%clk 0:00:20.2]} 57. Kh2 {[%clk 0:00:06.3]} 57... Qf4+ {[%clk 0:00:20]} 58.
Kh3 {[%clk 0:00:06]} 58... d1=Q {[%clk 0:00:20.3]} 59. c7 {[%clk 0:00:05.1]}
59... Qh1# {[%clk 0:00:20.6]} 0-1

[Event "Early-Titled-Tuesday-Blitz-May-28-2024"]
[Site "Chess.com"]
[Date "2024.05.28"]
[Round "2"]
[White "edgarhay012"]
[Black "kingofthenil"]
[Result "0-1"]
[WhiteElo "2611"]
[BlackElo "2941"]
[TimeControl "180+1"]
[EndTime "8:19:28 PDT"]
[Termination "kingofthenil won by checkmate"]

1. e4 {[%clk 0:03:00.9]} 1... Nc6 {[%clk 0:02:56.4]} 2. Nf3 {[%clk 0:02:59.8]}
2... d5 {[%clk 0:02:56.5]} 3. exd5 {[%clk 0:02:59.6]} 3... Qxd5 {[%clk
0:02:57.4]} 4. Nc3 {[%clk 0:02:59.9]} 4... Qh5 {[%clk 0:02:57.6]} 5. Be2 {[%clk
0:02:59.9]} 5... Bg4 {[%clk 0:02:57.4]} 6. O-O {[%clk 0:03:00.1]} 6... O-O-O
{[%clk 0:02:57.2]} 7. d3 {[%clk 0:02:58.9]} 7... e5 {[%clk 0:02:57.2]} 8. h3
{[%clk 0:02:54.1]} 8... Bxf3 {[%clk 0:02:57.3]} 9. Bxf3 {[%clk 0:02:54.4]} 9...
Qg6 {[%clk 0:02:58.2]} 10. Be3 {[%clk 0:02:52.9]} 10... f5 {[%clk 0:02:55.1]}
11. a3 {[%clk 0:02:41.9]} 11... e4 {[%clk 0:02:40.7]} 12. Bh5 {[%clk 0:02:40.7]}
12... Qf6 {[%clk 0:02:34]} 13. Qc1 {[%clk 0:02:31.8]} 13... exd3 {[%clk
0:01:57.1]} 14. Bg5 {[%clk 0:02:30.5]} 14... d2 {[%clk 0:01:54.9]} 15. Bxd2
{[%clk 0:02:30.3]} 15... Qh4 {[%clk 0:01:44.7]} 16. Be2 {[%clk 0:02:19.8]} 16...
Be7 {[%clk 0:01:34.6]} 17. Bf4 {[%clk 0:02:09]} 17... Nd4 {[%clk 0:01:27.9]} 18.
Bd3 {[%clk 0:02:07.4]} 18... g5 {[%clk 0:00:45.1]} 19. Be5 {[%clk 0:02:05.5]}
19... Bf6 {[%clk 0:00:37.1]} 20. Bxd4 {[%clk 0:01:52]} 20... Bxd4 {[%clk
0:00:32.5]} 21. Bxf5+ {[%clk 0:01:52.6]} 21... Kb8 {[%clk 0:00:32.9]} 22. Ne2
{[%clk 0:01:24.8]} 22... Bb6 {[%clk 0:00:32.6]} 23. c4 {[%clk 0:01:18.2]} 23...
Nh6 {[%clk 0:00:27.6]} 24. Bb1 {[%clk 0:00:47.4]} 24... Rhe8 {[%clk 0:00:21.5]}
25. Ng3 {[%clk 0:00:30.8]} 25... Bd4 {[%clk 0:00:17]} 26. Ne4 {[%clk 0:00:18.7]}
26... Rxe4 {[%clk 0:00:08.6]} 27. Bxe4 {[%clk 0:00:19.6]} 27... Qxe4 {[%clk
0:00:09.2]} 28. Qxg5 {[%clk 0:00:19.9]} 28... Rg8 {[%clk 0:00:09.8]} 29. Rae1
{[%clk 0:00:17.6]} 29... Qc6 {[%clk 0:00:07.3]} 30. Qd5 {[%clk 0:00:17.7]} 30...
Qxd5 {[%clk 0:00:03]} 31. cxd5 {[%clk 0:00:18.6]} 31... Bxb2 {[%clk 0:00:03.9]}
32. Re7 {[%clk 0:00:19.2]} 32... Nf5 {[%clk 0:00:03.5]} 33. Rf7 {[%clk
0:00:17.6]} 33... Nh4 {[%clk 0:00:02.6]} 34. g3 {[%clk 0:00:16.7]} 34... Bxa3
{[%clk 0:00:02.1]} 35. Re1 {[%clk 0:00:15.1]} 35... a5 {[%clk 0:00:02]} 36. Re4
{[%clk 0:00:14]} 36... Ng6 {[%clk 0:00:01.9]} 37. h4 {[%clk 0:00:14.6]} 37...
Bd6 {[%clk 0:00:01.6]} 38. f4 {[%clk 0:00:12.7]} 38... Nxh4 {[%clk 0:00:01.7]}
39. Kf2 {[%clk 0:00:12.3]} 39... Ng6 {[%clk 0:00:02.3]} 40. Rxh7 {[%clk
0:00:11.2]} 40... Rf8 {[%clk 0:00:02.3]} 41. Kf3 {[%clk 0:00:10.9]} 41... Ne5+
{[%clk 0:00:01.6]} 42. Ke2 {[%clk 0:00:10.4]} 42... Ng4 {[%clk 0:00:02.5]} 43.
Re6 {[%clk 0:00:08.4]} 43... Nf6 {[%clk 0:00:02.9]} 44. Rh1 {[%clk 0:00:05.9]}
44... Nxd5 {[%clk 0:00:03.4]} 45. Rb1 {[%clk 0:00:06.5]} 45... Nc3+ {[%clk
0:00:03]} 46. Kd3 {[%clk 0:00:07.4]} 46... Nxb1 {[%clk 0:00:03.9]} 47. Kc2
{[%clk 0:00:08.2]} 47... Na3+ {[%clk 0:00:03.7]} 48. Kb3 {[%clk 0:00:08.5]}
48... Nb5 {[%clk 0:00:04.3]} 49. Kc4 {[%clk 0:00:09.2]} 49... c6 {[%clk
0:00:04.5]} 50. Rxd6 {[%clk 0:00:08.8]} 50... Nxd6+ {[%clk 0:00:04.8]} 51. Kc5
{[%clk 0:00:09.1]} 51... Nf5 {[%clk 0:00:05.7]} 52. Kb6 {[%clk 0:00:10]} 52...
Nxg3 {[%clk 0:00:05.7]} 53. f5 {[%clk 0:00:10.3]} 53... Nxf5 {[%clk 0:00:04.6]}
54. Kc5 {[%clk 0:00:10.9]} 54... Ne7 {[%clk 0:00:04.9]} 55. Kb6 {[%clk
0:00:11.8]} 55... Rf6 {[%clk 0:00:03.4]} 56. Kc5 {[%clk 0:00:12.7]} 56... Rf5+
{[%clk 0:00:04]} 57. Kb6 {[%clk 0:00:13.2]} 57... Nc8# {[%clk 0:00:04.6]} 0-1

[Event "Early-Titled-Tuesday-Blitz-May-28-2024"]
[Site "Chess.com"]
[Date "2024.05.28"]
[Round "2"]
[White "campochess"]
[Black "FlemingA"]
[Result "0-1"]
[WhiteElo "2126"]
[BlackElo "2467"]
[TimeControl "180+1"]
[EndTime "8:19:28 PDT"]
[Termination "FlemingA won by checkmate"]

1. e4 {[%clk 0:03:00.9]} 1... b6 {[%clk 0:02:56.3]} 2. d4 {[%clk 0:03:00.2]}
2... Bb7 {[%clk 0:02:55]} 3. Nc3 {[%clk 0:02:59.8]} 3... e6 {[%clk 0:02:54.2]}
4. a3 {[%clk 0:02:59.5]} 4... d5 {[%clk 0:02:54.3]} 5. exd5 {[%clk 0:02:56.8]}
5... exd5 {[%clk 0:02:54.4]} 6. Nf3 {[%clk 0:02:56.1]} 6... Nf6 {[%clk
0:02:54.6]} 7. Ne5 {[%clk 0:02:55.8]} 7... Bd6 {[%clk 0:02:54.8]} 8. Bb5+ {[%clk
0:02:55]} 8... c6 {[%clk 0:02:51.6]} 9. Be2 {[%clk 0:02:54.5]} 9... O-O {[%clk
0:02:50.9]} 10. O-O {[%clk 0:02:52.7]} 10... Re8 {[%clk 0:02:51.3]} 11. Bg5
{[%clk 0:02:52.3]} 11... Bxe5 {[%clk 0:02:45.8]} 12. dxe5 {[%clk 0:01:54.4]}
12... Rxe5 {[%clk 0:02:46.7]} 13. f4 {[%clk 0:01:53.7]} 13... Re8 {[%clk
0:02:44]} 14. Bd3 {[%clk 0:01:53.3]} 14... Nbd7 {[%clk 0:02:41.4]} 15. Qf3
{[%clk 0:01:51.3]} 15... Nc5 {[%clk 0:02:32.7]} 16. Bf5 {[%clk 0:01:48.6]} 16...
Bc8 {[%clk 0:01:55.1]} 17. Qh3 {[%clk 0:01:46.9]} 17... Bxf5 {[%clk 0:01:49]}
18. Qxf5 {[%clk 0:01:46.3]} 18... Qd7 {[%clk 0:01:46.4]} 19. Qxd7 {[%clk
0:01:39.8]} 19... Ncxd7 {[%clk 0:01:46.3]} 20. Rad1 {[%clk 0:01:36.8]} 20... h6
{[%clk 0:01:41.9]} 21. Bh4 {[%clk 0:01:36.4]} 21... Ne4 {[%clk 0:01:38.7]} 22.
Ne2 {[%clk 0:01:30.7]} 22... Ndc5 {[%clk 0:01:24.5]} 23. Nd4 {[%clk 0:01:29.6]}
23... Rac8 {[%clk 0:01:24]} 24. Rf3 {[%clk 0:01:13.8]} 24... Nd6 {[%clk
0:01:13.1]} 25. f5 {[%clk 0:01:06.6]} 25... Nc4 {[%clk 0:01:01.5]} 26. b3 {[%clk
0:01:02.8]} 26... Ne5 {[%clk 0:00:54.6]} 27. Rh3 {[%clk 0:00:58.8]} 27... Ne4
{[%clk 0:00:51.9]} 28. f6 {[%clk 0:00:55.9]} 28... g5 {[%clk 0:00:51.7]} 29. Be1
{[%clk 0:00:52.2]} 29... Kh7 {[%clk 0:00:47.6]} 30. Nf5 {[%clk 0:00:51.3]} 30...
Ng4 {[%clk 0:00:34.4]} 31. Rf3 {[%clk 0:00:30.8]} 31... Ngxf6 {[%clk 0:00:26]}
32. h4 {[%clk 0:00:28.5]} 32... g4 {[%clk 0:00:22.3]} 33. Rf4 {[%clk 0:00:27.6]}
33... Re6 {[%clk 0:00:16.6]} 34. Nd4 {[%clk 0:00:23]} 34... Re5 {[%clk
0:00:15.5]} 35. c4 {[%clk 0:00:21]} 35... c5 {[%clk 0:00:12.9]} 36. Nb5 {[%clk
0:00:20.5]} 36... d4 {[%clk 0:00:11.8]} 37. b4 {[%clk 0:00:15.3]} 37... Kg7
{[%clk 0:00:11.5]} 38. bxc5 {[%clk 0:00:14.5]} 38... bxc5 {[%clk 0:00:11.1]} 39.
h5 {[%clk 0:00:14.4]} 39... Rg5 {[%clk 0:00:09.5]} 40. Rxf6 {[%clk 0:00:13.1]}
40... Nxf6 {[%clk 0:00:09]} 41. Nd6 {[%clk 0:00:12.8]} 41... Rc6 {[%clk
0:00:07.8]} 42. Nb7 {[%clk 0:00:12.4]} 42... Rxh5 {[%clk 0:00:07.1]} 43. Bd2
{[%clk 0:00:12]} 43... Rf5 {[%clk 0:00:06.6]} 44. Re1 {[%clk 0:00:11.7]} 44...
Re6 {[%clk 0:00:05.3]} 45. Rb1 {[%clk 0:00:11.1]} 45... Ne4 {[%clk 0:00:05.4]}
46. Nd8 {[%clk 0:00:10.3]} 46... Nxd2 {[%clk 0:00:05]} 47. Nxe6+ {[%clk
0:00:08.8]} 47... fxe6 {[%clk 0:00:05.9]} 48. Rb7+ {[%clk 0:00:08.7]} 48... Rf7
{[%clk 0:00:06.6]} 49. Rb5 {[%clk 0:00:08.2]} 49... g3 {[%clk 0:00:06.5]} 50.
Rb1 {[%clk 0:00:05.6]} 50... Nxb1 {[%clk 0:00:06.6]} 51. a4 {[%clk 0:00:05.5]}
51... Nd2 {[%clk 0:00:07]} 52. a5 {[%clk 0:00:04.4]} 52... Rf1# {[%clk
0:00:07.9]} 0-1

[Event "Early-Titled-Tuesday-Blitz-May-28-2024"]
[Site "Chess.com"]
[Date "2024.05.28"]
[Round "2"]
[White "Quattroporte300"]
[Black "Mackster23"]
[Result "0-1"]
[WhiteElo "2390"]
[BlackElo "2679"]
[TimeControl "180+1"]
[EndTime "8:19:30 PDT"]
[Termination "Mackster23 won on time"]

1. e4 {[%clk 0:03:00.9]} 1... g6 {[%clk 0:03:00.9]} 2. d4 {[%clk 0:03:00.1]}
2... Bg7 {[%clk 0:03:01.8]} 3. Nf3 {[%clk 0:03:00.3]} 3... d6 {[%clk 0:03:02.2]}
4. Bc4 {[%clk 0:03:00.6]} 4... a6 {[%clk 0:03:02.8]} 5. a4 {[%clk 0:02:58.7]}
5... e6 {[%clk 0:03:03.2]} 6. Qe2 {[%clk 0:02:57.8]} 6... Ne7 {[%clk 0:03:03.7]}
7. Nc3 {[%clk 0:02:57.7]} 7... O-O {[%clk 0:03:04]} 8. Bg5 {[%clk 0:02:57.7]}
8... Nbc6 {[%clk 0:03:01.9]} 9. Rd1 {[%clk 0:02:55.2]} 9... h6 {[%clk
0:02:56.3]} 10. Bc1 {[%clk 0:02:53.3]} 10... d5 {[%clk 0:02:54.1]} 11. Ba2
{[%clk 0:02:47.4]} 11... g5 {[%clk 0:02:14.4]} 12. h3 {[%clk 0:02:35.9]} 12...
Kh8 {[%clk 0:02:11.3]} 13. O-O {[%clk 0:02:34.9]} 13... f5 {[%clk 0:02:03.2]}
14. e5 {[%clk 0:02:16.8]} 14... f4 {[%clk 0:01:58.9]} 15. Rd3 {[%clk 0:02:06]}
15... Nb4 {[%clk 0:01:58.5]} 16. Rdd1 {[%clk 0:02:04.6]} 16... Nxa2 {[%clk
0:01:57.7]} 17. Nxa2 {[%clk 0:02:04.9]} 17... Bd7 {[%clk 0:01:56.8]} 18. Nc3
{[%clk 0:01:57]} 18... Be8 {[%clk 0:01:55.9]} 19. Nh2 {[%clk 0:01:52.6]} 19...
h5 {[%clk 0:01:51]} 20. g4 {[%clk 0:01:46.1]} 20... hxg4 {[%clk 0:01:27]} 21.
hxg4 {[%clk 0:01:42.4]} 21... Bg6 {[%clk 0:01:17.7]} 22. Nf3 {[%clk 0:01:39.7]}
22... Nc6 {[%clk 0:01:16.9]} 23. Kg2 {[%clk 0:01:38]} 23... Nb4 {[%clk 0:01:14]}
24. Rd2 {[%clk 0:01:28.3]} 24... Rc8 {[%clk 0:01:13]} 25. Rh1+ {[%clk
0:01:26.8]} 25... Kg8 {[%clk 0:01:13.2]} 26. b3 {[%clk 0:01:18.8]} 26... b6
{[%clk 0:01:07.1]} 27. Ba3 {[%clk 0:01:18.1]} 27... c5 {[%clk 0:01:06.5]} 28.
Bxb4 {[%clk 0:00:57.8]} 28... cxb4 {[%clk 0:01:05.4]} 29. Na2 {[%clk 0:00:58.4]}
29... a5 {[%clk 0:01:00]} 30. Nc1 {[%clk 0:00:58.7]} 30... Rc3 {[%clk
0:00:58.6]} 31. Nd3 {[%clk 0:00:58.1]} 31... Qe7 {[%clk 0:00:53]} 32. Rhd1
{[%clk 0:00:43.2]} 32... Rfc8 {[%clk 0:00:51.8]} 33. Kg1 {[%clk 0:00:42.2]}
33... Kf7 {[%clk 0:00:50]} 34. Kg2 {[%clk 0:00:42.3]} 34... Be4 {[%clk
0:00:48.1]} 35. Kg1 {[%clk 0:00:42.6]} 35... Kg6 {[%clk 0:00:43.9]} 36. Nfe1
{[%clk 0:00:36.4]} 36... Kf7 {[%clk 0:00:37.4]} 37. f3 {[%clk 0:00:35.1]} 37...
Bg6 {[%clk 0:00:36.4]} 38. Kg2 {[%clk 0:00:22.8]} 38... Qc7 {[%clk 0:00:35.6]}
39. Kf2 {[%clk 0:00:18.4]} 39... Ke7 {[%clk 0:00:34.9]} 40. Qf1 {[%clk 0:00:16]}
40... Rh8 {[%clk 0:00:33.2]} 41. Qg2 {[%clk 0:00:15.4]} 41... Qa7 {[%clk
0:00:29]} 42. Kg1 {[%clk 0:00:11.4]} 42... Bf8 {[%clk 0:00:24.2]} 43. Qf2 {[%clk
0:00:07.4]} 43... Ke8 {[%clk 0:00:22.9]} 44. Ng2 {[%clk 0:00:07.9]} 44... Qh7
{[%clk 0:00:22.3]} 45. Kf1 {[%clk 0:00:07.1]} 45... Qh1+ {[%clk 0:00:21]} 46.
Ke2 {[%clk 0:00:07.5]} 46... Qh3 {[%clk 0:00:21.9]} 47. Rf1 {[%clk 0:00:06.3]}
47... Be7 {[%clk 0:00:16.1]} 48. Nge1 {[%clk 0:00:06.2]} 48... Qh7 {[%clk
0:00:13.2]} 49. Rg1 {[%clk 0:00:06.2]} 49... Bd8 {[%clk 0:00:11.4]} 50. Ng2
{[%clk 0:00:06.1]} 50... Qc7 {[%clk 0:00:09.5]} 51. Rgd1 {[%clk 0:00:06.1]}
51... Rh3 {[%clk 0:00:09.2]} 52. Nge1 {[%clk 0:00:06.2]} 52... Qh7 {[%clk
0:00:08.6]} 53. Qg2 {[%clk 0:00:06.4]} 53... Rh2 {[%clk 0:00:08.8]} 0-1

[Event "Early-Titled-Tuesday-Blitz-May-28-2024"]
[Site "Chess.com"]
[Date "2024.05.28"]
[Round "2"]
[White "FMalexhdez"]
[Black "Kotofeyca"]
[Result "0-1"]
[WhiteElo "2271"]
[BlackElo "2511"]
[TimeControl "180+1"]
[EndTime "8:19:35 PDT"]
[Termination "Kotofeyca won on time"]

1. e4 {[%clk 0:02:41.7]} 1... c5 {[%clk 0:02:59.3]} 2. Nf3 {[%clk 0:02:41.1]}
2... d6 {[%clk 0:02:59.7]} 3. Bb5+ {[%clk 0:02:40.4]} 3... Bd7 {[%clk
0:02:59.4]} 4. Bxd7+ {[%clk 0:02:39.6]} 4... Qxd7 {[%clk 0:03:00.3]} 5. O-O
{[%clk 0:02:39.2]} 5... Nf6 {[%clk 0:02:59.6]} 6. Nc3 {[%clk 0:02:36.9]} 6...
Nc6 {[%clk 0:02:59.4]} 7. d4 {[%clk 0:02:36.3]} 7... cxd4 {[%clk 0:02:59.2]} 8.
Nxd4 {[%clk 0:02:36.5]} 8... e6 {[%clk 0:02:58.1]} 9. Be3 {[%clk 0:02:28.9]}
9... Be7 {[%clk 0:02:57]} 10. f4 {[%clk 0:02:21.9]} 10... O-O {[%clk 0:02:54]}
11. Kh1 {[%clk 0:02:19.1]} 11... a6 {[%clk 0:02:52.3]} 12. g4 {[%clk 0:02:16.8]}
12... d5 {[%clk 0:02:15.1]} 13. e5 {[%clk 0:02:13.6]} 13... Ne4 {[%clk
0:02:13.4]} 14. Nxe4 {[%clk 0:02:06.9]} 14... dxe4 {[%clk 0:02:12.6]} 15. c3
{[%clk 0:02:07]} 15... Rad8 {[%clk 0:01:53.5]} 16. Qe2 {[%clk 0:01:51.7]} 16...
Nxd4 {[%clk 0:01:11.3]} 17. Bxd4 {[%clk 0:01:50]} 17... Qc6 {[%clk 0:01:01]} 18.
Rae1 {[%clk 0:01:45.6]} 18... f5 {[%clk 0:01:00.3]} 19. exf6 {[%clk 0:01:43.4]}
19... Bxf6 {[%clk 0:00:58.7]} 20. Qxe4 {[%clk 0:01:34.8]} 20... Bxd4 {[%clk
0:00:54.8]} 21. cxd4 {[%clk 0:01:21.2]} 21... Rxd4 {[%clk 0:00:50]} 22. Qxc6
{[%clk 0:01:17.2]} 22... bxc6 {[%clk 0:00:50.9]} 23. Rxe6 {[%clk 0:01:17]} 23...
c5 {[%clk 0:00:39.8]} 24. Rxa6 {[%clk 0:01:11.1]} 24... Rfxf4 {[%clk 0:00:38.4]}
25. Rxf4 {[%clk 0:01:09.9]} 25... Rxf4 {[%clk 0:00:39.3]} 26. Rc6 {[%clk
0:01:04.1]} 26... Rf2 {[%clk 0:00:29]} 27. Rb6 {[%clk 0:00:59.9]} 27... c4
{[%clk 0:00:24.3]} 28. a3 {[%clk 0:00:55.5]} 28... Rc2 {[%clk 0:00:20.9]} 29. a4
{[%clk 0:00:36.5]} 29... c3 {[%clk 0:00:20.1]} 30. bxc3 {[%clk 0:00:34.1]} 30...
Rxc3 {[%clk 0:00:21]} 31. a5 {[%clk 0:00:30.8]} 31... Ra3 {[%clk 0:00:21.9]} 32.
Ra6 {[%clk 0:00:29.9]} 32... Ra2 {[%clk 0:00:20.7]} 33. Ra7 {[%clk 0:00:27.3]}
33... h6 {[%clk 0:00:20.3]} 34. a6 {[%clk 0:00:26.4]} 34... Kh7 {[%clk
0:00:20.1]} 35. h3 {[%clk 0:00:23.9]} 35... Kg6 {[%clk 0:00:20.3]} 36. Kg1
{[%clk 0:00:23.8]} 36... Kf6 {[%clk 0:00:20.4]} 37. Kf1 {[%clk 0:00:23.8]} 37...
g6 {[%clk 0:00:20.3]} 38. Ra8 {[%clk 0:00:20.6]} 38... Kg5 {[%clk 0:00:19.1]}
39. a7 {[%clk 0:00:18.4]} 39... Kh4 {[%clk 0:00:18.7]} 40. Rh8 {[%clk
0:00:17.1]} 40... Rxa7 {[%clk 0:00:18.9]} 41. Rxh6+ {[%clk 0:00:17.3]} 41... Kg5
{[%clk 0:00:19.1]} 42. Rh8 {[%clk 0:00:16.6]} 42... Ra2 {[%clk 0:00:19.3]} 43.
Kg1 {[%clk 0:00:16.6]} 43... Kf4 {[%clk 0:00:19.1]} 44. Rg8 {[%clk 0:00:15.6]}
44... Kg3 {[%clk 0:00:17]} 45. Kf1 {[%clk 0:00:14.2]} 45... Ra1+ {[%clk
0:00:15.2]} 46. Ke2 {[%clk 0:00:13.9]} 46... Ra6 {[%clk 0:00:15.9]} 47. Ke3
{[%clk 0:00:12]} 47... Re6+ {[%clk 0:00:15.6]} 48. Kd4 {[%clk 0:00:10.5]} 48...
Kxh3 {[%clk 0:00:16.5]} 49. Kd5 {[%clk 0:00:10.9]} 49... Ra6 {[%clk 0:00:16.6]}
50. g5 {[%clk 0:00:06.3]} 50... Kg4 {[%clk 0:00:16.7]} 51. Ke4 {[%clk
0:00:05.7]} 51... Re6+ {[%clk 0:00:15.5]} 52. Kd3 {[%clk 0:00:05.4]} 52... Kxg5
{[%clk 0:00:15.2]} 53. Ra8 {[%clk 0:00:02.3]} 53... Kf4 {[%clk 0:00:14.3]} 54.
Ra4+ {[%clk 0:00:02.7]} 54... Kg3 {[%clk 0:00:14.1]} 55. Rc4 {[%clk 0:00:01.9]}
55... g5 {[%clk 0:00:14.2]} 0-1